[Event "FAI-ch Master 2021"]
[Site "Klaksvik"]
[Date "2021.03.27"]
[Round "1.1"]
[White "Hojgaard, Samson"]
[Black "Berg, Margar M."]
[Result "0-1"]
[ECO "A40"]
[WhiteElo "1999"]
[BlackElo "1942"]
[Annotator "NA"]
[PlyCount "84"]
[EventDate "2021.03.27"]
[EventType "tourn"]
[EventCountry "FAI"]
[SourceTitle "playchess.com"]
[Source "ChessBase"]
[SourceQuality "1"]
[TimeControl "40/5400+30:900+30"]

1. d4 {[%emt 0:00:21]} b6 {[%emt 0:00:00]} 2. c4 {[%emt 0:00:12]} e6 {[%emt 0:00:35]} 3. a3 {[%emt 0:03:50]} Bb7 {[%emt 0:00:42]} 4. Nc3 {[%emt 0:00:08]} Nf6 {[%emt 0:00:37]} 5. Bg5 {[%emt 0:03:36]} Be7 {[%emt 0:03:12]} 6. e3 {[%emt 0:07:52]} c5 {[%emt 0:01:48]} 7. Nf3 {[%emt 0:03:59]} O-O {[%emt 0:02:04]} 8. Be2 {[%emt 0:10:43]} cxd4 {[%emt 0:02:46]} 9. Qxd4 {[%emt 0:00:23]} h6 {[%emt 0:01:17]} 10. Bh4 {[%emt 0:00:25]} Nc6 {[%emt 0:01:59]} 11. Qd2 {[%emt 0:00:36]} Na5 {[%emt 0:02:01]} 12. Qc2 {[%emt 0:02:15]} Rc8 {[%emt 0:01:17]} 13. b3 {[%emt 0:05:38]} d5 {[%emt 0:02:17]} 14. O-O {[%emt 0:03:08]} dxc4 {[%emt 0:03:16]} 15. b4 {[%emt 0:00:17]} Nb3 {[%emt 0:02:56]} 16. Rad1 {[%emt 0:00:07]} Nd5 {[%emt 0:06:44]} 17. Bg3 {[%emt 0:15:35]} Qe8 {[%emt 0:07:42]} 18. Ne4 {[%emt 0:11:16]} f5 {[%emt 0:29:22]} 19. Nd6 {[%emt 0:01:41]} Bxd6 {[%emt 0:02:56]} 20. Bxd6 {[%emt 0:00:02]} b5 {[%emt 0:02:31]} 21. Bxf8 {[%emt 0:02:34]} Qxf8 {[%emt 0:00:08]} 22. Nd4 {[%emt 0:02:57]} Nxd4 {[%emt 0:01:10]} 23. Rxd4 {[%emt 0:00:17]} a5 {[%emt 0:08:23]} 24. bxa5 {[%emt 0:10:39]} Qxa3 {[%emt 0:00:54]} 25. e4 {[%emt 0:07:05]} Qc3 {[%emt 0:03:16]} 26. Qd1 {[%emt 0:01:23]} Nf4 {[%emt 0:04:27]} 27. Bf3 {[%emt 0:01:22]} Bxe4 {[%emt 0:02:58]} 28. Rd8+ {[%emt 0:01:29]} Rxd8 {[%emt 0:00:07]} 29. Qxd8+ {[%emt 0:00:07]} Kh7 {[%emt 0:00:08]} 30. Bxe4 {[%emt 0:00:18]} fxe4 {[%emt 0:00:26]} 31. Qb6 {[%emt 0:02:00]} Qd3 {[%emt 0:02:42]} 32. a6 {[%emt 0:01:27]} c3 {[%emt 0:01:17]} 33. a7 {[%emt 0:00:36]} Ne2+ {[%emt 0:01:25]} 34. Kh1 {[%emt 0:00:07]} Nf4 {[%emt 0:02:27]} 35. Ra1 {[%emt 0:00:46]} c2 {[%emt 0:00:58]} 36. Qe3 {[%emt 0:00:53]} Nd5 {[%emt 0:00:39]} 37. Qe1 {[%emt 0:00:56]} Nc7 {[%emt 0:00:28]} 38. Qc1 {[%emt 0:01:09]} b4 {[%emt 0:00:19]} 39. h3 {[%emt 0:00:36]} b3 {[%emt 0:00:37]} 40. Qa3 {[%emt 0:00:00]} Qc3 {[%emt 0:00:00]} 41. Kh2 {[%emt 0:00:49]} Qe5+ {[%emt 0:01:10]} 42. g3 {[%emt 0:00:17]} b2 {[%emt 0:01:27]} 0-1

[Event "FAI-ch Master 2021"]
[Site "Klaksvik"]
[Date "2021.03.27"]
[Round "1.2"]
[White "Nielsen, Hogni Egilstoft"]
[Black "Poulsen, Martin"]
[Result "1/2-1/2"]
[ECO "B01"]
[WhiteElo "2384"]
[BlackElo "2285"]
[Annotator "NA"]
[PlyCount "114"]
[EventDate "2021.03.27"]
[EventType "tourn"]
[EventCountry "FAI"]
[SourceTitle "playchess.com"]
[Source "ChessBase"]
[SourceQuality "1"]
[TimeControl "40/5400+30:900+30"]

1. e4 {[%emt 0:00:00]} d5 {[%emt 0:00:00]} 2. exd5 {[%emt 0:00:00]} Qxd5 {[%emt 0:00:00]} 3. Nc3 {[%emt 0:00:08]} Qd6 {[%emt 0:00:00]} 4. d4 {[%emt 0:00:08]} Nf6 {[%emt 0:00:00]} 5. Be2 {[%emt 0:01:58]} c6 {[%emt 0:07:35]} 6. Nf3 {[%emt 0:04:19]} Bg4 {[%emt 0:12:17]} 7. h3 {[%emt 0:00:19]} Bxf3 {[%emt 0:05:30]} 8. Bxf3 {[%emt 0:00:11]} g6 {[%emt 0:01:32]} 9. O-O {[%emt 0:04:41]} Bg7 {[%emt 0:08:38]} 10. Nb5 {[%emt 0:03:23]} Qd8 {[%emt 0:02:59]} 11. Na3 {[%emt 0:01:58]} O-O {[%emt 0:02:07]} 12. Nc4 {[%emt 0:08:28]} Nbd7 {[%emt 0:13:21]} 13. c3 {[%emt 0:06:51]} Qc7 {[%emt 0:07:02]} 14. Qb3 {[%emt 0:05:21]} Nb6 {[%emt 0:07:01]} 15. Re1 {[%emt 0:06:04]} Nxc4 {[%emt 0:01:32]} 16. Qxc4 {[%emt 0:00:31]} e6 {[%emt 0:05:08]} 17. a4 {[%emt 0:07:29]} Nd5 {[%emt 0:02:29]} 18. Bg5 {[%emt 0:07:34]} Rfe8 {[%emt 0:01:18]} 19. Bh4 {[%emt 0:02:46]} Bh6 {[%emt 0:03:31]} 20. Bg3 {[%emt 0:03:06]} Bf4 {[%emt 0:00:07]} 21. Bxf4 {[%emt 0:00:05]} Qxf4 {[%emt 0:00:16]} 22. a5 {[%emt 0:00:40]} Qd6 {[%emt 0:01:07]} 23. g3 {[%emt 0:12:47]} b5 {[%emt 0:05:27]} 24. Qc5 {[%emt 0:03:36]} Red8 {[%emt 0:04:08]} 25. Rad1 {[%emt 0:02:29]} Qc7 {[%emt 0:02:27]} 26. Rc1 {[%emt 0:02:04]} Rac8 {[%emt 0:04:47]} 27. b3 {[%emt 0:07:23]} Qd6 {[%emt 0:00:03]} 28. Red1 {[%emt 0:03:13]} Qxc5 {[%emt 0:02:29]} 29. dxc5 {[%emt 0:00:01]} b4 {[%emt 0:00:34]} 30. c4 {[%emt 0:00:43]} Nc3 {[%emt 0:00:23]} 31. Rxd8+ {[%emt 0:01:31]} Rxd8 {[%emt 0:00:05]} 32. Rc2 {[%emt 0:01:52]} e5 {[%emt 0:01:02]} 33. Bxc6 {[%emt 0:00:54]} Rc8 {[%emt 0:00:06]} 34. Bg2 {[%emt 0:01:41]} Rxc5 {[%emt 0:00:36]} 35. a6 {[%emt 0:00:34]} e4 {[%emt 0:00:32]} 36. Rd2 {[%emt 0:00:25]} Rc6 {[%emt 0:00:18]} 37. Rd8+ {[%emt 0:00:44]} Kg7 {[%emt 0:00:05]} 38. Rb8 {[%emt 0:00:04]} Rxa6 {[%emt 0:01:11]} 39. Rxb4 {[%emt 0:00:02]} Rb6 {[%emt 0:00:40]} 40. Rxb6 {[%emt 0:00:00]} axb6 {[%emt 0:00:00]} 41. b4 {[%emt 0:10:50]} Kf6 {[%emt 0:02:27]} 42. f4 {[%emt 0:01:38]} Ke6 {[%emt 0:02:00]} 43. Kf2 {[%emt 0:01:02]} f5 {[%emt 0:00:34]} 44. Ke3 {[%emt 0:01:59]} Kd6 {[%emt 0:00:18]} 45. g4 {[%emt 0:02:27]} Na2 {[%emt 0:03:48]} 46. gxf5 {[%emt 0:00:08]} gxf5 {[%emt 0:00:07]} 47. c5+ {[%emt 0:00:44]} bxc5 {[%emt 0:00:21]} 48. bxc5+ {[%emt 0:00:01]} Kxc5 {[%emt 0:00:22]} 49. Bxe4 {[%emt 0:00:45]} fxe4 {[%emt 0:00:58]} 50. Kxe4 {[%emt 0:00:02]} Kd6 {[%emt 0:00:34]} 51. Kf5 {[%emt 0:00:05]} Nc3 {[%emt 0:05:12]} 52. Kf6 {[%emt 0:01:43]} Nd5+ {[%emt 0:01:06]} 53. Kg7 {[%emt 0:00:26]} h5 {[%emt 0:00:07]} 54. f5 {[%emt 0:00:36]} Ke5 {[%emt 0:04:45]} 55. Kg6 {[%emt 0:01:55]} Nf4+ {[%emt 0:00:55]} 56. Kg5 {[%emt 0:00:12]} Nxh3+ {[%emt 0:00:31]} 57. Kxh5 {[%emt 0:00:09]} Kxf5 {[%emt 0:00:04]} 1/2-1/2

[Event "FAI-ch Master 2021"]
[Site "Klaksvik"]
[Date "2021.03.27"]
[Round "1.3"]
[White "Nolsoe, Rani"]
[Black "Simonsen, Hans Kristian"]
[Result "0-1"]
[ECO "A40"]
[WhiteElo "2068"]
[BlackElo "2128"]
[Annotator "NA"]
[PlyCount "124"]
[EventDate "2021.03.27"]
[EventType "tourn"]
[EventCountry "FAI"]
[SourceTitle "playchess.com"]
[Source "ChessBase"]
[SourceQuality "1"]
[TimeControl "40/5400+30:900+30"]

1. d4 {[%emt 0:00:00]} e6 {[%emt 0:01:42]} 2. Bf4 {[%emt 0:01:10]} b6 {[%emt 0:05:09]} 3. e3 {[%emt 0:01:01]} Bb7 {[%emt 0:00:08]} 4. Nf3 {[%emt 0:00:43]} Nf6 {[%emt 0:02:52]} 5. Bd3 {[%emt 0:01:06]} Be7 {[%emt 0:00:09]} 6. h3 {[%emt 0:04:32]} d6 {[%emt 0:06:24]} 7. O-O {[%emt 0:01:01]} Nbd7 {[%emt 0:06:57]} 8. Nbd2 {[%emt 0:01:41]} h6 {[%emt 0:00:19]} 9. e4 {[%emt 0:10:49]} g5 {[%emt 0:00:30]} 10. Bg3 {[%emt 0:00:30]} g4 {[%emt 0:00:30]} 11. hxg4 {[%emt 0:00:30]} Nxg4 {[%emt 0:00:30]} 12. e5 {[%emt 0:00:30]} Rg8 {[%emt 0:16:05]} 13. Be4 {[%emt 0:47:09]} Bxe4 {[%emt 0:01:24]} 14. Nxe4 {[%emt 0:00:30]} d5 {[%emt 0:00:30]} 15. Ned2 {[%emt 0:00:30]} Nf8 {[%emt 0:00:30]} 16. Qe2 {[%emt 0:00:30]} Ng6 {[%emt 0:00:30]} 17. Qb5+ {[%emt 0:07:08]} Qd7 {[%emt 0:06:34]} 18. Qxd7+ {[%emt 0:00:05]} Kxd7 {[%emt 0:00:07]} 19. Nh2 {[%emt 0:00:37]} Nxh2 {[%emt 0:01:34]} 20. Bxh2 {[%emt 0:00:53]} Nh4 {[%emt 0:00:20]} 21. Bg3 {[%emt 0:02:21]} Nf5 {[%emt 0:00:13]} 22. c3 {[%emt 0:00:19]} Rg4 {[%emt 0:00:48]} 23. Bh2 {[%emt 0:08:26]} Rag8 {[%emt 0:01:35]} 24. g3 {[%emt 0:02:20]} h5 {[%emt 0:01:42]} 25. Kh1 {[%emt 0:04:44]} c5 {[%emt 0:09:07]} 26. dxc5 {[%emt 0:00:16]} bxc5 {[%emt 0:00:30]} 27. Rad1 {[%emt 0:01:51]} Kc6 {[%emt 0:01:14]} 28. Rfe1 {[%emt 0:00:22]} Ra4 {[%emt 0:02:28]} 29. a3 {[%emt 0:00:41]} c4 {[%emt 0:00:24]} 30. Nf3 {[%emt 0:00:33]} Bc5 {[%emt 0:00:42]} 31. Re2 {[%emt 0:00:29]} Ra6 {[%emt 0:00:18]} 32. Nh4 {[%emt 0:01:38]} Nh6 {[%emt 0:00:47]} 33. Nf3 {[%emt 0:00:33]} Rb6 {[%emt 0:00:50]} 34. Nd4+ {[%emt 0:00:14]} Bxd4 {[%emt 0:01:33]} 35. Rxd4 {[%emt 0:00:04]} Nf5 {[%emt 0:00:25]} 36. Rdd2 {[%emt 0:00:07]} Rbb8 {[%emt 0:05:19]} 37. Kg2 {[%emt 0:00:30]} Rg6 {[%emt 0:02:05]} 38. Kf1 {[%emt 0:01:45]} Rbg8 {[%emt 0:02:12]} 39. Ke1 {[%emt 0:00:41]} h4 {[%emt 0:00:36]} 40. Kd1 {[%emt 0:00:00]} hxg3 {[%emt 0:00:00]} 41. Bxg3 {[%emt 0:02:46]} Nxg3 {[%emt 0:06:58]} 42. fxg3 {[%emt 0:00:25]} Rxg3 {[%emt 0:00:26]} 43. Rf2 {[%emt 0:00:47]} R8g7 {[%emt 0:00:06]} 44. Rde2 {[%emt 0:00:13]} Kd7 {[%emt 0:00:19]} 45. Kc2 {[%emt 0:01:07]} Ke7 {[%emt 0:00:11]} 46. b3 {[%emt 0:00:13]} cxb3+ {[%emt 0:01:13]} 47. Kxb3 {[%emt 0:00:05]} d4 {[%emt 0:00:57]} 48. Rc2 {[%emt 0:01:26]} R7g5 {[%emt 0:00:11]} 49. Rf4 {[%emt 0:01:02]} dxc3 {[%emt 0:01:01]} 50. Rcf2 {[%emt 0:00:22]} Rxe5 {[%emt 0:01:12]} 51. Rxf7+ {[%emt 0:00:17]} Kd6 {[%emt 0:00:17]} 52. Rxa7 {[%emt 0:02:22]} Rc5 {[%emt 0:00:30]} 53. Rc2 {[%emt 0:02:03]} Rc8 {[%emt 0:02:58]} 54. Rh7 {[%emt 0:04:32]} Rd3 {[%emt 0:02:02]} 55. a4 {[%emt 0:00:49]} e5 {[%emt 0:00:54]} 56. a5 {[%emt 0:00:35]} Kd5 {[%emt 0:08:06]} 57. Rd7+ {[%emt 0:00:48]} Ke4 {[%emt 0:00:12]} 58. Rh7 {[%emt 0:01:26]} Rd5 {[%emt 0:03:38]} 59. Rh4+ {[%emt 0:01:20]} Kd3 {[%emt 0:00:40]} 60. Rh3+ {[%emt 0:00:16]} Kd4 {[%emt 0:00:07]} 61. Rcxc3 {[%emt 0:02:44]} Rxc3+ {[%emt 0:01:15]} 62. Rxc3 {[%emt 0:00:05]} Rxa5 {[%emt 0:00:07]} 0-1

[Event "FAI-ch Master 2021"]
[Site "Klaksvik"]
[Date "2021.03.27"]
[Round "1.4"]
[White "Johansen, Haldur Suni"]
[Black "Apol, Luitjen Akselsson"]
[Result "1/2-1/2"]
[ECO "B94"]
[WhiteElo "1997"]
[BlackElo "2103"]
[Annotator "NA"]
[PlyCount "68"]
[EventDate "2021.03.27"]
[EventType "tourn"]
[EventCountry "FAI"]
[SourceTitle "playchess.com"]
[Source "ChessBase"]
[SourceQuality "1"]
[TimeControl "40/5400+30:900+30"]

1. e4 {[%emt 0:00:00]} c5 {[%emt 0:00:00]} 2. Nf3 {[%emt 0:00:00]} d6 {[%emt 0:00:27]} 3. d4 {[%emt 0:00:00]} cxd4 {[%emt 0:00:39]} 4. Nxd4 {[%emt 0:00:02]} Nf6 {[%emt 0:00:26]} 5. Nc3 {[%emt 0:00:09]} a6 {[%emt 0:00:36]} 6. Bg5 {[%emt 0:00:38]} Nbd7 {[%emt 0:08:32]} 7. Bc4 {[%emt 0:00:21]} Qa5 {[%emt 0:00:43]} 8. Qd2 {[%emt 0:00:08]} e6 {[%emt 0:00:14]} 9. O-O-O {[%emt 0:00:17]} Be7 {[%emt 0:01:29]} 10. Kb1 {[%emt 0:03:24]} h6 {[%emt 0:01:50]} 11. Be3 {[%emt 0:00:32]} Ng4 {[%emt 0:06:13]} 12. f4 {[%emt 0:00:45]} Nxe3 {[%emt 0:05:46]} 13. Qxe3 {[%emt 0:00:23]} Qc5 {[%emt 0:06:26]} 14. Bb3 {[%emt 0:01:52]} O-O {[%emt 0:02:15]} 15. Rd3 {[%emt 0:12:43]} Nf6 {[%emt 0:05:41]} 16. h3 {[%emt 0:06:13]} b5 {[%emt 0:14:41]} 17. g4 {[%emt 0:02:23]} Bd7 {[%emt 0:11:26]} 18. g5 {[%emt 0:05:00]} hxg5 {[%emt 0:00:25]} 19. fxg5 {[%emt 0:00:06]} Nh5 {[%emt 0:00:49]} 20. g6 {[%emt 0:06:25]} Qe5 {[%emt 0:02:31]} 21. Nce2 {[%emt 0:21:09]} fxg6 {[%emt 0:08:34]} 22. Nf3 {[%emt 0:07:51]} Rxf3 {[%emt 0:00:07]} 23. Qxf3 {[%emt 0:00:08]} a5 {[%emt 0:00:32]} 24. a3 {[%emt 0:18:08]} b4 {[%emt 0:03:12]} 25. axb4 {[%emt 0:02:42]} axb4 {[%emt 0:00:21]} 26. Rd5 {[%emt 0:00:32]} exd5 {[%emt 0:03:16]} 27. Bxd5+ {[%emt 0:00:50]} Be6 {[%emt 0:00:07]} 28. Bxa8 {[%emt 0:00:14]} Bf6 {[%emt 0:10:04]} 29. c3 {[%emt 0:01:14]} bxc3 {[%emt 0:00:21]} 30. Nxc3 {[%emt 0:01:26]} Nf4 {[%emt 0:00:36]} 31. Rd1 {[%emt 0:04:25]} g5 {[%emt 0:02:04]} 32. Rd2 {[%emt 0:00:55]} Qa5 {[%emt 0:01:20]} 33. Bd5 {[%emt 0:01:44]} Nxd5 {[%emt 0:00:18]} 34. Rxd5 {[%emt 0:02:08]} Bxd5 {[%emt 0:01:20]} 1/2-1/2

[Event "FAI-ch Master 2021"]
[Site "Klaksvik"]
[Date "2021.03.28"]
[Round "2.1"]
[White "Berg, Margar M."]
[Black "Apol, Luitjen Akselsson"]
[Result "1-0"]
[ECO "E61"]
[WhiteElo "1942"]
[BlackElo "2103"]
[Annotator "NA"]
[PlyCount "85"]
[EventDate "2021.03.27"]
[EventType "tourn"]
[EventCountry "FAI"]
[SourceTitle "playchess.com"]
[Source "ChessBase"]
[SourceQuality "1"]
[TimeControl "40/5400+30:900+30"]

1. d4 {[%emt 0:00:00]} Nf6 {[%emt 0:00:00]} 2. c4 {[%emt 0:00:51]} g6 {[%emt 0:00:21]} 3. Nc3 {[%emt 0:00:24]} Bg7 {[%emt 0:00:41]} 4. g3 {[%emt 0:00:26]} O-O {[%emt 0:00:50]} 5. Bg2 {[%emt 0:00:31]} d6 {[%emt 0:00:35]} 6. e3 {[%emt 0:00:33]} Nbd7 {[%emt 0:02:53]} 7. Nge2 {[%emt 0:00:39]} e5 {[%emt 0:01:59]} 8. O-O {[%emt 0:00:50]} Re8 {[%emt 0:01:21]} 9. b3 {[%emt 0:01:57]} Qe7 {[%emt 0:02:58]} 10. Bb2 {[%emt 0:05:15]} Nf8 {[%emt 0:01:53]} 11. Rc1 {[%emt 0:04:09]} h5 {[%emt 0:02:43]} 12. Qe1 {[%emt 0:05:32]} N8h7 {[%emt 0:07:44]} 13. Nd5 {[%emt 0:07:07]} Nxd5 {[%emt 0:06:54]} 14. cxd5 {[%emt 0:01:43]} e4 {[%emt 0:01:41]} 15. Nc3 {[%emt 0:14:14]} Nf6 {[%emt 0:03:56]} 16. Rc2 {[%emt 0:14:38]} a6 {[%emt 0:02:21]} 17. Re2 {[%emt 0:07:24]} Bf5 {[%emt 0:07:21]} 18. Qd2 {[%emt 0:03:53]} Bh6 {[%emt 0:00:44]} 19. Bc1 {[%emt 0:02:07]} h4 {[%emt 0:14:39]} 20. h3 {[%emt 0:04:22]} Bd7 {[%emt 0:05:22]} 21. a4 {[%emt 0:04:06]} Kg7 {[%emt 0:01:58]} 22. g4 {[%emt 0:02:36]} Nxg4 {[%emt 0:12:17]} 23. hxg4 {[%emt 0:00:50]} h3 {[%emt 0:00:15]} 24. Bxe4 {[%emt 0:09:00]} f5 {[%emt 0:00:11]} 25. f3 {[%emt 0:02:32]} fxe4 {[%emt 0:00:34]} 26. Nxe4 {[%emt 0:02:26]} Bxg4 {[%emt 0:00:51]} 27. Ng3 {[%emt 0:00:48]} Qh4 {[%emt 0:02:19]} 28. Kh2 {[%emt 0:00:35]} Bd7 {[%emt 0:01:06]} 29. Qe1 {[%emt 0:00:30]} Qf6 {[%emt 0:03:55]} 30. Qf2 {[%emt 0:00:45]} b5 {[%emt 0:02:32]} 31. f4 {[%emt 0:01:34]} bxa4 {[%emt 0:02:02]} 32. bxa4 {[%emt 0:00:04]} Bxa4 {[%emt 0:01:11]} 33. Rg1 {[%emt 0:00:15]} Kh7 {[%emt 0:01:07]} 34. e4 {[%emt 0:00:19]} Bb5 {[%emt 0:01:02]} 35. e5 {[%emt 0:00:33]} Qf7 {[%emt 0:00:24]} 36. e6 {[%emt 0:00:53]} Qf6 {[%emt 0:00:52]} 37. Rc2 {[%emt 0:00:43]} Rac8 {[%emt 0:04:32]} 38. f5 {[%emt 0:00:28]} Bxc1 {[%emt 0:00:34]} 39. fxg6+ {[%emt 0:00:46]} Qxg6 {[%emt 0:00:01]} 40. Rgxc1 {[%emt 0:00:00]} Re7 {[%emt 0:00:00]} 41. Nf5 {[%emt 0:08:26]} Rg7 {[%emt 0:17:48]} 42. Nxg7 {[%emt 0:03:52]} Qxg7 {[%emt 0:01:14]} 43. Qh4+ {[%emt 0:00:34]} 1-0

[Event "FAI-ch Master 2021"]
[Site "Klaksvik"]
[Date "2021.03.28"]
[Round "2.2"]
[White "Simonsen, Hans Kristian"]
[Black "Johansen, Haldur Suni"]
[Result "1-0"]
[ECO "A35"]
[WhiteElo "2128"]
[BlackElo "1997"]
[Annotator "NA"]
[PlyCount "95"]
[EventDate "2021.03.27"]
[EventType "tourn"]
[EventCountry "FAI"]
[SourceTitle "playchess.com"]
[Source "ChessBase"]
[SourceQuality "1"]
[TimeControl "40/5400+30:900+30"]

1. Nf3 {[%emt 0:02:47]} Nf6 {[%emt 0:02:02]} 2. c4 {[%emt 0:00:46]} c5 {[%emt 0:00:38]} 3. Nc3 {[%emt 0:00:07]} Nc6 {[%emt 0:00:20]} 4. g3 {[%emt 0:00:10]} d6 {[%emt 0:00:32]} 5. Bg2 {[%emt 0:00:23]} e6 {[%emt 0:00:48]} 6. O-O {[%emt 0:04:28]} Be7 {[%emt 0:00:31]} 7. d4 {[%emt 0:00:55]} cxd4 {[%emt 0:00:28]} 8. Nxd4 {[%emt 0:00:06]} Bd7 {[%emt 0:00:19]} 9. Ndb5 {[%emt 0:01:14]} Qb8 {[%emt 0:00:47]} 10. Bf4 {[%emt 0:00:23]} Ne5 {[%emt 0:11:14]} 11. Qb3 {[%emt 0:14:35]} Bc6 {[%emt 0:16:43]} 12. Rfd1 {[%emt 0:09:14]} Bxg2 {[%emt 0:08:26]} 13. Kxg2 {[%emt 0:00:18]} a6 {[%emt 0:22:43]} 14. Na3 {[%emt 0:04:32]} O-O {[%emt 0:03:06]} 15. c5 {[%emt 0:04:01]} d5 {[%emt 0:04:23]} 16. e4 {[%emt 0:02:35]} Nfd7 {[%emt 0:08:48]} 17. exd5 {[%emt 0:02:24]} Nxc5 {[%emt 0:02:43]} 18. Qc2 {[%emt 0:00:56]} g5 {[%emt 0:00:35]} 19. Bxe5 {[%emt 0:04:43]} Qxe5 {[%emt 0:00:10]} 20. Nc4 {[%emt 0:00:13]} Qf5 {[%emt 0:01:34]} 21. Qxf5 {[%emt 0:03:43]} exf5 {[%emt 0:00:35]} 22. d6 {[%emt 0:00:09]} Bd8 {[%emt 0:02:06]} 23. Rd5 {[%emt 0:00:18]} Ne4 {[%emt 0:00:53]} 24. Nxe4 {[%emt 0:03:37]} fxe4 {[%emt 0:00:08]} 25. g4 {[%emt 0:02:11]} Rc8 {[%emt 0:02:28]} 26. Ne3 {[%emt 0:00:08]} Rc6 {[%emt 0:01:13]} 27. Rad1 {[%emt 0:00:44]} f6 {[%emt 0:00:45]} 28. R1d4 {[%emt 0:04:28]} Re8 {[%emt 0:00:31]} 29. Nf5 {[%emt 0:01:42]} Kf7 {[%emt 0:02:59]} 30. d7 {[%emt 0:00:57]} Re5 {[%emt 0:02:25]} 31. Nd6+ {[%emt 0:00:50]} Ke6 {[%emt 0:02:13]} 32. Nxb7 {[%emt 0:00:21]} Ke7 {[%emt 0:01:23]} 33. Nxd8 {[%emt 0:02:45]} Kxd8 {[%emt 0:00:01]} 34. Rxe5 {[%emt 0:01:02]} fxe5 {[%emt 0:00:03]} 35. Rxe4 {[%emt 0:00:06]} Re6 {[%emt 0:00:19]} 36. Rb4 {[%emt 0:00:02]} h6 {[%emt 0:00:39]} 37. Rb7 {[%emt 0:00:18]} Rd6 {[%emt 0:00:21]} 38. a4 {[%emt 0:00:32]} e4 {[%emt 0:00:46]} 39. b4 {[%emt 0:02:40]} Rd2 {[%emt 0:01:22]} 40. Kf1 {[%emt 0:00:00]} Rd4 {[%emt 0:00:00]} 41. h3 {[%emt 0:02:32]} Rd3 {[%emt 0:01:41]} 42. Ra7 {[%emt 0:01:04]} Rb3 {[%emt 0:00:16]} 43. Rxa6 {[%emt 0:00:20]} Rxb4 {[%emt 0:00:06]} 44. a5 {[%emt 0:00:23]} Ra4 {[%emt 0:00:16]} 45. Rxh6 {[%emt 0:01:11]} Kxd7 {[%emt 0:04:00]} 46. a6 {[%emt 0:00:22]} Ke7 {[%emt 0:00:28]} 47. a7 {[%emt 0:01:58]} Kf7 {[%emt 0:00:07]} 48. Rh8 {[%emt 0:00:11]} 1-0

[Event "FAI-ch Master 2021"]
[Site "Klaksvik"]
[Date "2021.03.28"]
[Round "2.3"]
[White "Poulsen, Martin"]
[Black "Nolsoe, Rani"]
[Result "1-0"]
[ECO "A01"]
[WhiteElo "2285"]
[BlackElo "2068"]
[Annotator "NA"]
[PlyCount "51"]
[EventDate "2021.03.27"]
[EventType "tourn"]
[EventCountry "FAI"]
[SourceTitle "playchess.com"]
[Source "ChessBase"]
[SourceQuality "1"]
[TimeControl "40/5400+30:900+30"]

1. b3 {[%emt 0:00:00]} e5 {[%emt 0:00:00]} 2. Bb2 {[%emt 0:00:00]} Nc6 {[%emt 0:00:03]} 3. c4 {[%emt 0:00:01]} Nf6 {[%emt 0:03:25]} 4. Nc3 {[%emt 0:09:40]} d5 {[%emt 0:02:30]} 5. cxd5 {[%emt 0:02:12]} Nxd5 {[%emt 0:00:14]} 6. g3 {[%emt 0:08:28]} Be6 {[%emt 0:03:46]} 7. Bg2 {[%emt 0:00:25]} Be7 {[%emt 0:01:24]} 8. Nf3 {[%emt 0:01:47]} O-O {[%emt 0:00:47]} 9. O-O {[%emt 0:00:55]} f6 {[%emt 0:01:44]} 10. d4 {[%emt 0:21:23]} exd4 {[%emt 0:23:13]} 11. Nxd4 {[%emt 0:05:19]} Nxd4 {[%emt 0:07:03]} 12. Qxd4 {[%emt 0:04:03]} Nxc3 {[%emt 0:00:51]} 13. Qxc3 {[%emt 0:00:16]} c6 {[%emt 0:01:49]} 14. Be4 {[%emt 0:01:43]} a5 {[%emt 0:02:26]} 15. Qe3 {[%emt 0:02:53]} Bh3 {[%emt 0:03:21]} 16. Rfd1 {[%emt 0:02:10]} Qc7 {[%emt 0:00:28]} 17. Qd3 {[%emt 0:05:57]} h6 {[%emt 0:10:13]} 18. Qc4+ {[%emt 0:07:34]} Kh8 {[%emt 0:00:12]} 19. Bc2 {[%emt 0:01:00]} Rad8 {[%emt 0:04:11]} 20. Qe4 {[%emt 0:10:09]} f5 {[%emt 0:01:32]} 21. Qe6 {[%emt 0:02:01]} Rd6 {[%emt 0:10:43]} 22. Qe3 {[%emt 0:06:22]} Rxd1+ {[%emt 0:10:26]} 23. Rxd1 {[%emt 0:00:22]} Bf6 {[%emt 0:00:21]} 24. Bxf6 {[%emt 0:02:16]} Rxf6 {[%emt 0:01:02]} 25. Qe8+ {[%emt 0:01:25]} Kh7 {[%emt 0:00:38]} 26. Qh5 {[%emt 0:00:44]} 1-0

[Event "FAI-ch Master 2021"]
[Site "Klaksvik"]
[Date "2021.03.28"]
[Round "2.4"]
[White "Hojgaard, Samson"]
[Black "Nielsen, Hogni Egilstoft"]
[Result "1/2-1/2"]
[ECO "A46"]
[WhiteElo "1999"]
[BlackElo "2384"]
[Annotator "NA"]
[PlyCount "98"]
[EventDate "2021.03.27"]
[EventType "tourn"]
[EventCountry "FAI"]
[SourceTitle "playchess.com"]
[Source "ChessBase"]
[SourceQuality "1"]
[TimeControl "40/5400+30:900+30"]

1. d4 {[%emt 0:00:00]} Nf6 {[%emt 0:00:00]} 2. Nf3 {[%emt 0:00:21]} e6 {[%emt 0:00:00]} 3. Bg5 {[%emt 0:00:23]} c5 {[%emt 0:01:46]} 4. e3 {[%emt 0:09:35]} Qb6 {[%emt 0:03:47]} 5. Qc1 {[%emt 0:01:32]} Nc6 {[%emt 0:13:22]} 6. c3 {[%emt 0:00:08]} Be7 {[%emt 0:02:40]} 7. Bd3 {[%emt 0:01:47]} d6 {[%emt 0:01:07]} 8. Nbd2 {[%emt 0:01:05]} e5 {[%emt 0:05:27]} 9. O-O {[%emt 0:03:34]} Be6 {[%emt 0:03:10]} 10. h3 {[%emt 0:04:05]} h6 {[%emt 0:09:22]} 11. dxc5 {[%emt 0:05:08]} dxc5 {[%emt 0:18:38]} 12. Bxf6 {[%emt 0:10:04]} Bxf6 {[%emt 0:01:05]} 13. Qc2 {[%emt 0:03:27]} O-O {[%emt 0:01:24]} 14. Bc4 {[%emt 0:01:31]} Na5 {[%emt 0:07:16]} 15. Bxe6 {[%emt 0:03:35]} Qxe6 {[%emt 0:01:23]} 16. Nb3 {[%emt 0:00:54]} Qb6 {[%emt 0:09:15]} 17. Nfd2 {[%emt 0:01:02]} Rac8 {[%emt 0:01:05]} 18. Nxa5 {[%emt 0:01:57]} Qxa5 {[%emt 0:00:02]} 19. Ne4 {[%emt 0:04:02]} Be7 {[%emt 0:00:46]} 20. c4 {[%emt 0:00:38]} f5 {[%emt 0:02:34]} 21. Nc3 {[%emt 0:00:08]} e4 {[%emt 0:00:09]} 22. Nd5 {[%emt 0:00:24]} Bd6 {[%emt 0:00:54]} 23. f3 {[%emt 0:14:20]} Rce8 {[%emt 0:07:33]} 24. fxe4 {[%emt 0:01:42]} fxe4 {[%emt 0:01:20]} 25. Rxf8+ {[%emt 0:00:35]} Bxf8 {[%emt 0:03:04]} 26. Rf1 {[%emt 0:12:02]} Bd6 {[%emt 0:00:02]} 27. Qe2 {[%emt 0:00:33]} Qd8 {[%emt 0:04:31]} 28. Qg4 {[%emt 0:00:35]} Qg5 {[%emt 0:01:36]} 29. Qd7 {[%emt 0:01:35]} Qe5 {[%emt 0:00:36]} 30. Qf7+ {[%emt 0:01:02]} Kh8 {[%emt 0:00:33]} 31. Nf4 {[%emt 0:01:20]} Kh7 {[%emt 0:00:17]} 32. Rd1 {[%emt 0:00:47]} Bb8 {[%emt 0:00:29]} 33. Rd5 {[%emt 0:05:12]} Qe7 {[%emt 0:00:23]} 34. Qf5+ {[%emt 0:00:13]} Kg8 {[%emt 0:00:07]} 35. Rd7 {[%emt 0:00:25]} Bxf4 {[%emt 0:00:56]} 36. exf4 {[%emt 0:04:16]} Qe6 {[%emt 0:00:10]} 37. Qxe6+ {[%emt 0:00:33]} Rxe6 {[%emt 0:00:01]} 38. Rxb7 {[%emt 0:03:07]} e3 {[%emt 0:00:01]} 39. Kf1 {[%emt 0:00:11]} Re4 {[%emt 0:00:07]} 40. Ke2 {[%emt 0:00:00]} Rxc4 {[%emt 0:00:00]} 41. Kxe3 {[%emt 0:01:26]} Rc2 {[%emt 0:06:58]} 42. Kf3 {[%emt 0:02:28]} a5 {[%emt 0:00:49]} 43. a3 {[%emt 0:00:25]} c4 {[%emt 0:00:17]} 44. g3 {[%emt 0:04:57]} c3 {[%emt 0:01:53]} 45. bxc3 {[%emt 0:01:24]} Rxc3+ {[%emt 0:00:04]} 46. Kg4 {[%emt 0:00:05]} Rxa3 {[%emt 0:00:28]} 47. Ra7 {[%emt 0:00:03]} a4 {[%emt 0:03:02]} 48. Kh4 {[%emt 0:00:07]} Kf8 {[%emt 0:00:34]} 49. f5 {[%emt 0:00:10]} Rf3 {[%emt 0:01:54]} 1/2-1/2